bitfinex-derivatives/quotes_SOLF0:USTF0_20220101
["timestamp","ask_amount","ask_price","bid_price","bid_amount"]
[1641040950785,32.4268,172.81,172.69,30.66479]
[1641040951484,32.4268,172.81,172.72,27.66479]
[1641040953184,8.62612384,172.8,172.72,27.66479]
[1641040954687,32.4268,172.81,172.72,27.66479]
[1641040955989,3.0,172.79,172.72,27.66479]
[1641040956194,3.0,172.76,172.68,32.25070325]
[1641040956691,3.0,172.76,172.62,32.25070325]
[1641040956692,3.0,172.75,172.62,32.25070325]
[1641040956893,3.0,172.75,172.62,35.25070325]
[1641040957192,5.78753943,172.76,172.62,32.25070325]
[1641040957392,32.4334,172.75,172.62,3.0]
[1641040957691,27.66479,172.74,172.65,27.66479]
[1641040960597,27.66479,172.74,172.65,30.66479]
[1641040960996,32.6561,172.79,172.65,30.66479]
[1641040961196,32.6561,172.79,172.65,27.66479]
[1641040961396,38.44280216,172.79,172.65,27.66479]
[1641040961596,41.44280216,172.79,172.65,27.66479]
[1641040961795,27.66479,172.77,172.66,7.89000085]
[1641040962195,66.10759216,172.79,172.66,7.89000085]
[1641040962596,66.10759216,172.79,172.65,27.66479]
[1641040963197,78.3998682,172.79,172.66,20.18224864]
[1641040963796,78.3998682,172.79,172.69,27.66479]
[1641040964397,12.29227604,172.77,172.69,39.95706604]
[1641040966201,8.52935931,172.78,172.69,39.95706604]
[1641040966701,12.33527326,172.77,172.69,39.95706604]
[1641040967500,77.44717395,172.79,172.71,12.29227604]
[1641040968305,12.33428395,172.77,172.69,39.95706604]
[1641040969803,8.52959469,172.78,172.69,39.95706604]
[1641040970704,12.33571381,172.77,172.69,27.66479]
[1641040971104,12.33571381,172.77,172.69,39.95706604]
[1641040971709,8.52959469,172.78,172.69,39.95706604]
[1641040971910,12.33477748,172.78,172.73,27.66479]
[1641040972103,12.33477748,172.78,172.7,20.20992352]
[1641040972504,8.52959469,172.81,172.71,12.29227604]
[1641040972704,12.33396092,172.79,172.71,12.29227604]
[1641040973608,16.48576344,172.81,172.7,22.15116471]
[1641040973809,27.66479,172.79,172.7,22.15116471]
[1641040974308,14.50473304,172.78,172.7,22.15116471]
[1641040974808,27.66479,172.79,172.7,22.15116471]
[1641040975409,14.50493918,172.78,172.7,22.15116471]
[1641040975609,20.87493918,172.78,172.7,22.15116471]
[1641040975809,8.54031617,172.78,172.7,22.15116471]
[1641040976010,6.37,172.78,172.7,22.15116471]
[1641040976611,2.17017273,172.77,172.7,22.15116471]
[1641040977111,18.70422174,172.78,172.7,22.15116471]
[1641040977812,2.16945857,172.77,172.7,22.15116471]
[1641040978512,6.37,172.78,172.7,22.15116471]
[1641040979112,2.16951755,172.77,172.7,22.15116471]
[1641040979719,6.37,172.78,172.7,22.15116471]
[1641040980318,2.16951645,172.77,172.7,22.15116471]
[1641040981121,6.37,172.78,172.7,22.15116471]
[1641040981318,27.66479,172.79,172.7,22.15116471]
[1641040981718,14.50019914,172.78,172.7,1.94124119]
[1641040982418,14.50019914,172.78,172.7,22.1483893]
[1641040983019,12.3312549,172.77,172.7,1.94124119]
[1641040983620,8.52668826,172.78,172.7,1.94124119]
[1641040983621,14.50097542,172.78,172.7,1.94124119]
[1641040984720,12.3312549,172.76,172.7,1.94124119]
[1641040986524,10.6969697,172.78,172.67,22.15137345]
[1641040986525,12.3312549,172.75,172.67,22.15137345]
[1641040987526,2.16972052,172.76,172.67,22.15137345]
[1641040987727,10.6969697,172.76,172.67,22.15137345]
[1641040988128,12.33636163,172.75,172.67,22.15137345]
[1641040988729,10.6969697,172.76,172.67,22.15137345]
[1641040989331,12.33636674,172.75,172.67,22.15137345]
[1641040989731,10.6969697,172.76,172.67,22.15137345]
[1641040990531,12.33637081,172.75,172.67,22.15137345]
[1641040991131,10.6969697,172.76,172.67,22.15137345]
[1641040992135,12.33636079,172.75,172.67,22.15137345]
[1641040992635,10.6969697,172.76,172.67,22.15137345]
[1641040993937,12.33631959,172.75,172.67,22.15137345]
[1641040994337,10.6969697,172.76,172.67,22.15137345]
[1641040994942,12.33631514,172.75,172.67,22.15137345]
[1641040995543,14.50605091,172.76,172.67,22.15137345]
[1641040995744,3.0,172.74,172.67,22.15137345]
[1641040996145,3.0,172.72,172.67,1.94124119]
[1641040996346,30.66479,172.72,172.67,1.94124119]
[1641040996946,35.21279,172.72,172.67,1.94124119]
[1641040997645,14.51089694,172.71,172.63,12.29227604]
[1641040997845,44.66509694,172.71,172.63,12.29227604]
[1641040998246,2.17210051,172.7,172.62,39.95706604]
[1641040999354,42.49360024,172.71,172.63,22.15172536]
[1641040999952,2.17173482,172.7,172.64,12.29227604]
[1641041000550,30.1542,172.71,172.64,12.29227604]
[1641041000951,4.548,172.72,172.64,12.29227604]
[1641041001150,4.548,172.72,172.66,12.29227604]
[1641041001351,72.664612,172.74,172.66,12.29227604]
[1641041001551,44.999822,172.74,172.66,12.29227604]
[1641041001750,32.6621,172.74,172.66,12.29227604]
[1641041002554,32.6621,172.74,172.65,29.60603119]
[1641041003151,32.6621,172.74,172.66,1.94124119]
[1641041006962,2.20205849,172.73,172.65,27.66479]
[1641041007564,2.20205849,172.73,172.66,22.00143132]
[1641041009766,14.53978049,172.73,172.66,1.90025388]
[1641041010565,4.11267476,172.69,172.68,4.11267476]
[1641041012166,12.337722,172.72,172.68,4.11267476]
[1641041019472,12.337722,172.71,172.67,4.11267476]
[1641041019871,12.337722,172.71,172.68,4.11267476]
[1641041020071,14.53978049,172.72,172.68,4.11267476]
[1641041020674,2.20205849,172.72,172.66,6.01292864]
[1641041021372,2.20205849,172.72,172.65,31.77746476]
[1641041022276,2.20205849,172.72,172.67,4.11267476]
[1641041022874,2.20205849,172.72,172.66,6.00877804]
[1641041024175,14.53978049,172.72,172.65,31.77746476]
[1641041025277,14.53978049,172.72,172.66,6.0087528]
[1641041025278,2.20205849,172.72,172.66,6.0087528]
[1641041026381,29.86684849,172.72,172.66,6.0087528]
[1641041026580,29.86684849,172.72,172.65,31.77746476]
[1641041027180,2.20205849,172.71,172.65,31.77746476]
[1641041030183,2.20205849,172.71,172.66,6.00873888]
[1641041030883,2.20205849,172.71,172.65,31.77746476]
[1641041032084,14.53978049,172.71,172.67,4.11267476]
[1641041034288,2.20205849,172.71,172.67,4.11267476]
[1641041035487,4.11312006,172.68,172.67,4.11267476]
[1641041036789,4.11312006,172.7,172.66,1.89994329]
[1641041037590,4.11312006,172.7,172.68,4.10976426]
[1641041038092,4.11312006,172.69,172.68,4.10976426]
[1641041039493,5.78971746,172.7,172.66,6.00970755]
[1641041040193,2.20205849,172.69,172.65,31.77455426]
[1641041041298,14.53978049,172.69,172.65,27.66479]
[1641041043201,4.11034711,172.67,172.65,31.77455426]
[1641041045103,4.11034711,172.66,172.65,31.77455426]
[1641041045502,4.11034711,172.66,172.65,4.10976426]
[1641041046303,10.84053683,172.71,172.64,4.10976426]
[1641041046304,12.337722,172.69,172.64,4.10976426]
[1641041046904,4.11060398,172.65,172.64,4.10976426]
[1641041047506,4.11060398,172.66,172.64,4.10976426]
[1641041048107,4.11060398,172.68,172.63,1.8984984]
[1641041048707,4.11060398,172.68,172.67,4.11013882]
[1641041049708,4.11060398,172.69,172.67,4.11013882]
[1641041050913,4.11060398,172.68,172.64,39.95706604]
[1641041051611,4.11060398,172.68,172.65,1.8984984]
[1641041052813,4.11060398,172.69,172.65,1.8984984]
[1641041054015,4.11060398,172.68,172.65,1.8984984]
[1641041054616,4.11060398,172.68,172.64,12.29227604]
[1641041056315,4.11060398,172.68,172.63,21.99879437]
[1641041059520,4.11060398,172.67,172.63,21.99879437]
[1641041060122,4.11060398,172.67,172.63,1.8984984]
[1641041061927,14.53978049,172.71,172.63,1.8984984]
[1641041062128,14.53978049,172.71,172.64,12.29227604]
[1641041062129,4.11270621,172.68,172.64,12.29227604]
[1641041062629,71.371312,172.72,172.64,14.19077444]
[1641041063329,4.11266948,172.69,172.64,14.19077444]
[1641041064030,59.03359,172.72,172.64,14.19077444]
[1641041064536,4.11266788,172.69,172.64,14.19077444]
[1641041065232,59.03359,172.72,172.64,14.19077444]
[1641041065834,4.11306833,172.68,172.64,14.19077444]
[1641041066935,71.37279499,172.72,172.64,14.19077444]
[1641041067534,2.21308636,172.71,172.68,4.11303807]
[1641041068135,59.03359,172.72,172.68,4.11303807]
[1641041068336,27.66479,172.72,172.68,4.11303807]
[1641041069339,2.21308085,172.71,172.68,4.11303807]
[1641041069838,27.66479,172.72,172.68,4.11303807]
[1641041070439,2.2131906,172.71,172.67,4.11303807]
[1641041070738,14.55258912,172.71,172.67,4.11303807]
[1641041071040,14.55258912,172.71,172.66,4.11303807]
[1641041071940,27.66479,172.72,172.67,4.11303807]
[1641041072940,2.21213489,172.71,172.67,4.11303807]
[1641041073340,12.33374769,172.7,172.66,4.11303807]
[1641041074039,27.66479,172.72,172.66,4.11303807]
[1641041074240,14.54668106,172.71,172.66,4.11303807]
[1641041076544,12.33433194,172.69,172.64,4.11303807]
[1641041077144,12.33433194,172.69,172.65,4.11303807]
[1641041077844,2.21234912,172.69,172.65,4.11303807]
[1641041078344,44.55389874,172.7,172.65,4.11303807]
[1641041078948,2.21264511,172.69,172.65,4.11303807]
[1641041079347,32.2188,172.7,172.66,4.11303807]
[1641041079547,12.33509874,172.71,172.66,4.11303807]
[1641041080148,14.54742139,172.71,172.66,4.11303807]
[1641041080649,12.33509874,172.7,172.66,4.11303807]
[1641041081550,2.21232265,172.71,172.66,4.11303807]
[1641041081751,14.54670397,172.71,172.66,4.11303807]
[1641041082253,14.54670397,172.71,172.67,4.11303807]
[1641041083754,27.66479,172.72,172.67,4.11303807]
[1641041084355,4.11309913,172.68,172.67,4.11303807]
[1641041085153,40.004033,172.72,172.67,4.11303807]
[1641041085654,2.21297609,172.71,172.68,4.11303807]
[1641041086354,40.004033,172.72,172.67,4.11303807]
[1641041087355,2.21298057,172.71,172.67,6.01153647]
[1641041088355,40.004033,172.72,172.67,6.01153647]
[1641041088557,12.339243,172.7,172.65,6.01153647]
[1641041089358,14.55063547,172.71,172.66,4.11303807]
[1641041089757,14.55063547,172.71,172.65,6.01153647]
[1641041091159,12.339243,172.7,172.64,31.77782807]
[1641041092562,12.339243,172.7,172.65,6.01136313]
[1641041094362,14.55063547,172.71,172.65,6.01136313]
[1641041095265,27.66479,172.69,172.65,6.01136313]
[1641041095864,2.21139247,172.68,172.63,6.01136313]
[1641041096565,40.004033,172.69,172.63,6.01136313]
[1641041097266,14.55137885,172.68,172.63,6.01136313]
[1641041101279,4.11383902,172.64,172.63,6.01136313]
[1641041101878,14.55137885,172.68,172.6,12.29227604]
[1641041102876,14.55137885,172.68,172.64,4.1137841]
[1641041103280,8.64693193,172.68,172.63,4.1137841]
[1641041103980,14.55573607,172.68,172.64,4.1137841]
[1641041106179,14.55573607,172.68,172.63,4.1137841]
[1641041107283,14.55573607,172.68,172.64,4.1137841]
[1641041107886,12.34170116,172.67,172.63,4.1137841]
[1641041108485,2.21403491,172.68,172.6,4.1137841]
[1641041109287,2.21403491,172.68,172.62,27.66479]
[1641041109585,2.21403491,172.71,172.62,31.7785741]
[1641041109785,2.21403491,172.71,172.63,30.1109]
[1641041109985,2.21403491,172.71,172.66,3.0]
[1641041110185,27.66479,172.72,172.67,3.0]
[1641041110386,27.66479,172.72,172.66,3.0]
[1641041111186,27.66479,172.72,172.67,6.01210916]
[1641041111388,27.66479,172.75,172.67,6.01210916]
[1641041111586,27.66479,172.75,172.67,36.27330916]
[1641041111988,12.28721695,172.77,172.73,3.0]
[1641041112186,12.28721695,172.78,172.73,3.0]
[1641041112586,12.28721695,172.78,172.72,3.0]
[1641041112986,12.28721695,172.78,172.7,3.0]
[1641041113188,2.20131635,172.81,172.72,4.1137841]
[1641041113386,29.86610635,172.81,172.73,30.5798]
[1641041113987,12.28721695,172.8,172.73,30.5798]
[1641041114188,18.29721695,172.8,172.73,30.5798]
[1641041114688,2.20131635,172.79,172.73,30.5798]
[1641041116489,14.4885333,172.79,172.73,30.5798]
[1641041117088,2.20131635,172.79,172.73,30.5798]
[1641041117690,12.28721695,172.75,172.73,30.5798]
[1641041118490,12.33602579,172.76,172.73,30.5798]
[1641041119089,12.33602579,172.75,172.73,30.5798]
[1641041119291,12.33602579,172.75,172.72,27.66479]
[1641041119489,34.4520196,172.79,172.72,27.66479]
[1641041119690,34.4520196,172.79,172.72,58.93449]
[1641041120389,12.33611343,172.75,172.72,58.93449]
[1641041120590,12.33611343,172.75,172.72,27.66479]
[1641041120789,34.4520196,172.79,172.72,27.66479]
[1641041120992,34.4520196,172.79,172.71,4.1137841]
[1641041121491,12.33693765,172.74,172.7,4.1137841]
[1641041123494,10.8412359,172.75,172.7,4.1137841]
[1641041124194,14.5377614,172.75,172.71,4.1137841]
[1641041124894,10.85252914,172.76,172.71,4.1137841]
[1641041125292,27.66479,172.77,172.71,4.1137841]
[1641041125492,27.66479,172.77,172.69,27.66479]
[1641041127194,31.1644,172.79,172.69,27.66479]
[1641041127796,31.1644,172.79,172.7,3.0]
[1641041127995,31.1644,172.79,172.69,27.66479]
[1641041128194,27.66479,172.81,172.7,3.0]
[1641041129398,27.66479,172.81,172.72,27.66479]
[1641041129598,27.66479,172.81,172.73,31.569]
[1641041130299,2.19356456,172.8,172.73,31.569]
[1641041130798,2.19356456,172.8,172.69,27.66479]
[1641041131000,2.19356456,172.8,172.7,31.6119]
[1641041133501,27.66479,172.78,172.7,31.6119]
[1641041133700,32.00079,172.78,172.7,31.6119]
[1641041138805,12.23597342,172.75,172.71,6.01382625]
[1641041139704,41.52182481,172.77,172.71,6.01382625]
[1641041140705,4.11142592,172.72,172.71,6.01382625]
[1641041141605,10.85242481,172.76,172.71,6.01382625]
[1641041142008,4.11142358,172.72,172.71,4.1137841]
[1641041142609,10.85242481,172.76,172.71,6.01382625]
[1641041143309,4.11143414,172.72,172.71,4.1137841]
[1641041143808,10.85242481,172.76,172.71,6.01382625]
[1641041144407,12.33434839,172.75,172.71,4.1137841]
[1641041144911,10.85242481,172.76,172.71,6.01382625]
[1641041145508,12.33435747,172.75,172.71,6.01382625]
[1641041146409,4.11145031,172.72,172.71,6.01382625]
[1641041147009,14.54644248,172.76,172.71,4.1137841]
[1641041147812,12.33435093,172.75,172.71,4.1137841]
[1641041148414,3.0,172.75,172.71,6.01382625]
[1641041149115,2.21209155,172.74,172.71,6.01382625]
[1641041149718,3.0,172.75,172.71,6.01382625]
[1641041150319,2.2117828,172.74,172.71,6.01382625]
[1641041150619,6.7957828,172.74,172.71,6.01382625]
[1641041151118,4.584,172.74,172.71,6.01382625]
[1641041151820,2.21188631,172.73,172.7,34.9316841]
[1641041152020,2.21188631,172.73,172.7,4.1137841]
[1641041152621,4.584,172.74,172.71,4.1137841]
[1641041153322,2.21183992,172.73,172.7,6.0135]
[1641041154024,4.584,172.74,172.7,6.0135]
[1641041155122,2.21232673,172.73,172.7,6.0135]
[1641041155623,4.584,172.74,172.7,4.1137841]
[1641041155823,15.31525474,172.75,172.69,27.66479]
[1641041156524,2.2084333,172.74,172.69,27.66479]
[1641041157727,15.31525474,172.75,172.69,27.66479]
[1641041158828,3.0,172.73,172.69,27.66479]
[1641041159533,5.2084333,172.72,172.69,27.66479]
[1641041160637,2.20891381,172.71,172.69,27.66479]
[1641041161132,3.0,172.72,172.69,27.66479]
[1641041161933,2.20891198,172.71,172.69,27.66479]
[1641041162533,3.0,172.72,172.69,27.66479]
[1641041163735,2.20892685,172.71,172.69,27.66479]
[1641041164236,3.0,172.72,172.69,27.66479]
[1641041165242,2.20882646,172.71,172.69,27.66479]
[1641041165744,3.0,172.72,172.69,27.66479]
[1641041166443,2.20897785,172.71,172.69,27.66479]
[1641041167045,3.0,172.72,172.69,27.66479]
[1641041167747,2.20888189,172.71,172.69,27.66479]
[1641041167945,7.12188189,172.71,172.69,27.66479]
[1641041168447,2.20903344,172.7,172.69,27.66479]
[1641041169046,4.913,172.71,172.69,27.66479]
[1641041169047,17.22825474,172.71,172.69,27.66479]
[1641041169447,3.0,172.7,172.67,4.1137841]
[1641041169646,3.0,172.69,172.67,4.1137841]
[1641041170047,3.0,172.68,172.67,4.1137841]
[1641041170748,5.21376709,172.68,172.64,4.1137841]
[1641041171448,2.21389744,172.67,172.64,4.1137841]
[1641041172551,11.63926808,172.69,172.64,4.1137841]
[1641041172750,8.63926808,172.69,172.64,4.1137841]
[1641041173152,2.21333118,172.7,172.67,4.1137841]
[1641041174153,17.25278191,172.71,172.67,4.1137841]
[1641041174451,4.913,172.71,172.67,4.1137841]
[1641041174652,2.21320943,172.7,172.67,4.1137841]
[1641041175454,12.33939221,172.71,172.67,4.1137841]
[1641041175852,2.21318829,172.72,172.67,4.1137841]
[1641041176053,14.55248677,172.72,172.68,4.1137841]
[1641041179256,12.33929848,172.71,172.67,4.1137841]
[1641041180159,10.85730133,172.72,172.67,4.1137841]
[1641041180757,14.55242911,172.72,172.68,4.1137841]
[1641041181960,12.33924082,172.71,172.67,4.1137841]
[1641041183358,2.21318829,172.72,172.67,4.1137841]
[1641041183559,2.21318829,172.72,172.65,1.89988983]
[1641041183560,2.21318829,172.72,172.66,4.1137841]
[1641041185862,12.31180178,172.71,172.67,4.1137841]
[1641041186361,10.8565848,172.72,172.67,4.1137841]
[1641041187064,12.33916684,172.71,172.67,4.1137841]
[1641041187663,10.8565848,172.72,172.67,4.1137841]
[1641041188264,12.33901922,172.71,172.67,4.1137841]
[1641041188764,8.78954986,172.7,172.67,4.1137841]
[1641041189264,3.0,172.69,172.67,4.1137841]
[1641041189464,3.0,172.69,172.68,4.1137841]
[1641041189666,8.78954986,172.7,172.68,4.1137841]
[1641041190065,27.66479,172.69,172.68,4.1137841]
[1641041190267,29.8787762,172.69,172.64,4.1137841]
[1641041190466,32.8787762,172.69,172.64,4.1137841]
[1641041190866,14.55557408,172.68,172.64,4.1137841]
[1641041192667,27.66479,172.69,172.64,4.1137841]
[1641041193366,14.5554751,172.68,172.64,4.1137841]
[1641041195468,30.66479,172.69,172.64,4.1137841]
[1641041195669,27.66479,172.69,172.64,4.1137841]
[1641041196067,12.34187509,172.67,172.63,6.01367393]
[1641041197272,14.55592744,172.68,172.63,6.01367393]
[1641041198574,14.55592744,172.68,172.64,4.1137841]
[1641041199378,27.66479,172.69,172.64,4.1137841]
[1641041199976,14.55592249,172.68,172.64,4.1137841]
[1641041200479,27.66479,172.69,172.64,4.1137841]
[1641041201378,14.5558308,172.68,172.64,4.1137841]
[1641041201980,27.66479,172.69,172.64,4.1137841]
[1641041202476,14.55586921,172.68,172.64,4.1137841]
[1641041203176,27.66479,172.69,172.64,4.1137841]
[1641041203377,27.66479,172.69,172.62,31.1453]
[1641041204177,2.20541199,172.68,172.62,31.1453]
[1641041204679,27.66479,172.69,172.62,35.2590841]
[1641041204878,4.0977298,172.67,172.62,35.2590841]
[1641041205379,34.21530347,172.68,172.62,35.2590841]
[1641041205879,32.01,172.68,172.62,35.2590841]
[1641041206079,4.09775972,172.67,172.62,31.1453]
[1641041206580,32.01,172.68,172.62,31.1453]
[1641041207581,4.09779442,172.67,172.62,31.1453]
[1641041208084,32.01,172.68,172.62,31.1453]
[1641041208685,4.09779268,172.67,172.62,31.1453]
[1641041209486,32.01,172.68,172.62,31.1453]
[1641041210086,4.09779749,172.67,172.62,31.1453]
[1641041210685,32.01,172.68,172.62,31.1453]
[1641041211289,4.0977832,172.67,172.62,31.1453]
[1641041212087,32.01,172.68,172.62,31.1453]
[1641041212989,4.09773359,172.67,172.62,31.1453]
[1641041213493,32.01,172.68,172.62,31.1453]
[1641041213691,4.11386527,172.65,172.64,4.1137841]
[1641041214391,32.01,172.68,172.64,4.1137841]
[1641041214992,2.21403012,172.67,172.64,4.1137841]
[1641041215191,8.15603012,172.67,172.64,4.1137841]
[1641041215592,2.21409956,172.66,172.64,4.1137841]
[1641041216093,5.942,172.67,172.65,4.1137841]
[1641041216792,2.21385413,172.66,172.65,4.1137841]
[1641041217495,5.942,172.67,172.63,1.89986899]
[1641041218697,5.942,172.67,172.66,4.11356373]
[1641041219295,8.15563022,172.67,172.66,4.11356373]
[1641041219899,5.942,172.67,172.66,4.11356373]
[1641041220300,27.66479,172.69,172.66,4.11356373]
[1641041220800,2.21369446,172.67,172.65,4.11356373]
[1641041221304,27.66479,172.69,172.65,4.11356373]
[1641041221305,2.2137245,172.68,172.65,4.11356373]
[1641041222000,27.66479,172.69,172.65,4.11356373]
[1641041222501,2.21373096,172.68,172.65,4.11356373]
[1641041223204,5.78954986,172.7,172.65,4.11356373]
[1641041223803,14.55451026,172.69,172.65,4.11356373]
[1641041224302,5.78954986,172.7,172.65,4.11356373]
[1641041224601,27.66479,172.69,172.65,4.11356373]
[1641041225102,29.87478089,172.69,172.64,4.11356373]
[1641041226101,27.66479,172.69,172.64,4.11356373]
[1641041231507,4.1067776,172.67,172.64,4.11356373]
[1641041232111,5.78954986,172.7,172.65,4.11356373]
[1641041232711,4.10777859,172.67,172.65,4.11356373]
[1641041233411,18.10970321,172.7,172.66,4.11356373]
[1641041234615,45.77449321,172.7,172.66,4.11356373]
[1641041234815,12.32015335,172.69,172.65,4.11356373]
[1641041235312,33.45433986,172.7,172.65,4.11356373]
[1641041235513,45.79432861,172.7,172.65,4.11356373]
[1641041236013,12.33998875,172.69,172.65,4.11356373]
[1641041236413,18.29498875,172.69,172.65,4.11356373]
[1641041237015,5.955,172.69,172.65,4.11356373]
[1641041237714,18.29485341,172.69,172.65,4.11356373]
[1641041238315,5.955,172.69,172.65,4.11356373]
[1641041238517,8.64477875,172.71,172.68,3.0]
[1641041238714,3.49007875,172.71,172.7,55.32958]
[1641041238915,32.25070325,172.73,172.7,55.32958]
[1641041239115,12.33651891,172.75,172.7,55.32958]
[1641041239717,12.33651891,172.75,172.7,27.66479]
[1641041239915,12.33651891,172.75,172.68,31.0778]
[1641041240115,5.78753943,172.76,172.68,31.0778]
[1641041240316,5.78753943,172.76,172.73,4.11155873]
[1641041240515,8.78753943,172.76,172.73,4.11155873]
[1641041240715,33.45232943,172.76,172.73,4.11155873]
[1641041240915,33.45232943,172.76,172.69,6.01142772]
[1641041241116,63.34272943,172.76,172.69,6.01142772]
[1641041241515,12.33758471,172.73,172.69,6.01142772]
[1641041242317,12.3371223,172.74,172.7,4.11155873]
[1641041243017,12.3371223,172.74,172.69,6.01142772]
[1641041243217,18.8541223,172.74,172.69,6.01142772]
[1641041243920,2.16630475,172.73,172.7,4.11155873]
[1641041244421,6.517,172.74,172.7,4.11155873]
[1641041244619,6.517,172.74,172.72,4.11155873]
[1641041245422,14.5040738,172.73,172.69,6.01142772]
[1641041245820,6.517,172.74,172.69,6.01142772]
[1641041246021,18.85462303,172.74,172.69,6.01142772]
[1641041246620,2.16631679,172.73,172.69,6.01142772]
[1641041247323,6.517,172.74,172.7,4.11155873]
[1641041248725,4.11229578,172.71,172.7,4.11155873]
[1641041249323,4.11229578,172.71,172.69,1.89986899]
[1641041249324,6.517,172.74,172.69,4.89986899]
[1641041249525,6.517,172.74,172.69,1.89986899]
[1641041250025,6.517,172.74,172.73,4.11176269]
[1641041251226,8.68228327,172.74,172.73,4.11176269]
[1641041251928,6.517,172.74,172.73,4.11176269]
[1641041252630,8.68226731,172.74,172.73,4.11176269]
[1641041253328,6.517,172.74,172.73,4.11176269]
[1641041254130,8.68231715,172.74,172.73,4.11176269]
[1641041254728,6.517,172.74,172.73,4.11176269]
[1641041255331,8.68242297,172.74,172.73,4.11176269]
[1641041256130,6.517,172.74,172.73,4.11176269]
[1641041256332,6.517,172.74,172.68,35.18956269]
[1641041256830,6.517,172.74,172.68,31.0778]
[1641041258130,27.66479,172.76,172.68,31.0778]
[1641041262633,2.16583302,172.75,172.72,4.11176269]
[1641041263138,27.66479,172.76,172.72,4.11176269]
[1641041263938,2.16579265,172.75,172.72,4.11176269]
[1641041264337,27.66479,172.76,172.72,4.11176269]
[1641041265041,2.16583978,172.75,172.72,4.11176269]
[1641041265539,27.66479,172.76,172.72,4.11176269]
[1641041266240,2.16583852,172.75,172.72,4.11176269]
[1641041267240,40.00144539,172.76,172.72,4.11176269]
[1641041267641,2.16584455,172.75,172.72,4.11176269]
[1641041268342,40.00144539,172.76,172.72,4.11176269]
[1641041268843,2.16582844,172.75,172.72,4.11176269]
[1641041269642,40.00144539,172.76,172.72,4.11176269]
[1641041270144,2.16584122,172.75,172.72,4.11176269]
[1641041270847,40.00144539,172.76,172.72,4.11176269]
[1641041271247,12.33665539,172.76,172.72,4.11176269]
[1641041271454,30.0206,172.79,172.72,4.11176269]
[1641041271455,2.16578371,172.75,172.72,4.11176269]
[1641041272348,30.0206,172.79,172.72,4.11176269]
[1641041272549,14.50011214,172.78,172.74,4.11176269]
[1641041273149,30.0206,172.79,172.74,4.11176269]
[1641041273350,12.33664427,172.76,172.72,4.11176269]
[1641041274852,12.33664427,172.77,172.72,4.11176269]
[1641041275952,12.33664427,172.76,172.72,4.11176269]
[1641041276353,10.6828747,172.78,172.73,4.11176269]
[1641041276855,12.33590988,172.77,172.73,4.11176269]
[1641041277654,10.6828747,172.78,172.73,4.11176269]
[1641041278355,12.31827531,172.77,172.71,4.11176269]
[1641041279256,42.14890501,172.78,172.72,4.11176269]
[1641041279956,14.48411501,172.77,172.71,4.11176269]
[1641041282261,2.1658397,172.77,172.72,4.11176269]
[1641041282763,39.98306531,172.78,172.72,6.05814314]
[1641041283364,2.16234232,172.77,172.72,6.05814314]
[1641041284065,2.16234232,172.77,172.72,4.11176269]
[1641041284265,2.16234232,172.77,172.71,34.25766269]
[1641041284767,14.48061763,172.77,172.71,34.25766269]
[1641041285165,14.48061763,172.77,172.71,4.11176269]
[1641041286065,12.31827531,172.76,172.72,4.11176269]
[1641041286865,10.67911951,172.77,172.72,4.11176269]
[1641041287265,12.33654312,172.76,172.72,4.11176269]
[1641041288168,10.67911951,172.77,172.72,4.11176269]
[1641041288668,12.33647014,172.76,172.72,4.11176269]
[1641041289168,10.67911951,172.77,172.72,4.11176269]
[1641041289570,2.16234232,172.77,172.72,4.11176269]
[1641041289770,14.49792389,172.77,172.73,4.11176269]
[1641041290772,27.66479,172.78,172.73,4.11176269]
[1641041291476,2.16586281,172.77,172.72,4.11176269]
[1641041291674,12.3366251,172.76,172.72,4.11176269]
[1641041294578,10.68296921,172.77,172.71,1.94638748]
[1641041294579,2.16586281,172.77,172.74,4.11176269]
[1641041295380,2.16586281,172.77,172.71,1.94638748]
[1641041295381,12.3366251,172.77,172.73,4.11176269]
[1641041295979,12.33610944,172.76,172.72,4.11176269]
[1641041296681,10.68216134,172.77,172.72,4.11176269]
[1641041297382,12.33612964,172.76,172.72,4.11176269]
[1641041297985,14.50162773,172.77,172.73,4.11176269]
[1641041300385,27.66479,172.78,172.73,4.11176269]
[1641041301085,14.50072239,172.77,172.73,4.11176269]
[1641041301786,27.66479,172.78,172.73,4.11176269]
[1641041302284,27.66479,172.78,172.74,4.11176269]
[1641041302285,2.16532231,172.77,172.74,4.11176269]
[1641041302986,27.66479,172.78,172.74,4.11176269]
[1641041303586,2.16527569,172.77,172.74,4.11176269]
[1641041304088,39.99981386,172.78,172.73,4.11176269]
[1641041304589,2.16528143,172.77,172.73,4.11176269]
[1641041305188,4.11168142,172.74,172.73,4.11176269]